bitfinex-derivatives/quotes_BTCF0:USTF0_20241006
["timestamp","ask_amount","ask_price","bid_price","bid_amount"]
[1728242488008,0.10296404,62896.0,62895.0,0.001]
[1728242488202,0.10296404,62896.0,62895.0,0.002]
[1728242488608,0.10396404,62896.0,62895.0,0.002]
[1728242488803,0.10396404,62896.0,62895.0,0.001]
[1728242489113,0.11496404,62896.0,62895.0,0.002]
[1728242490517,0.47576404,62896.0,62895.0,0.002]
[1728242494922,0.50501473,62896.0,62895.0,0.002]
[1728242496015,0.5620456,62896.0,62895.0,0.002]
[1728242500538,0.2012456,62896.0,62895.0,0.002]
[1728242500821,0.5620456,62896.0,62895.0,0.002]
[1728242501414,0.2012456,62896.0,62895.0,0.002]
[1728242501623,0.5620456,62896.0,62895.0,0.002]
[1728242503120,0.14421473,62896.0,62895.0,0.002]
[1728242503323,0.50501473,62896.0,62895.0,0.002]
[1728242503724,0.14421473,62896.0,62895.0,0.002]
[1728242503924,0.50501473,62896.0,62895.0,0.002]
[1728242506728,0.47341473,62896.0,62895.0,0.002]
[1728242511219,0.53044649,62896.0,62895.0,0.002]
[1728242512535,0.16964649,62896.0,62895.0,0.002]
[1728242512743,0.53044649,62896.0,62895.0,0.002]
[1728242517541,0.46685349,62896.0,62895.0,0.002]
[1728242518237,0.40982173,62896.0,62895.0,0.002]
[1728242518443,0.38057104,62896.0,62895.0,0.002]
[1728242520038,0.01977104,62896.0,62895.0,0.002]
[1728242521535,0.01977104,62896.0,62895.0,0.112]
[1728242526533,0.01977104,62896.0,62895.0,0.002]
[1728242537153,0.012,62896.0,62895.0,0.002]
[1728242541252,0.012,62896.0,62895.0,0.41034482]
[1728242541853,0.012,62896.0,62895.0,0.43826754]
[1728242542354,0.012,62896.0,62895.0,0.39072272]
[1728242544457,0.012,62896.0,62895.0,0.43825711]
[1728242545363,0.012,62896.0,62895.0,0.39072272]
[1728242546459,0.012,62896.0,62895.0,0.43825711]
[1728242547457,0.012,62896.0,62895.0,0.50072272]
[1728242560366,0.012,62896.0,62895.0,0.13992272]
[1728242568263,0.012,62896.0,62895.0,0.50072272]
[1728242570673,0.012,62896.0,62895.0,0.56409087]
[1728242570977,0.012,62896.0,62895.0,0.50072272]
[1728242571559,0.012,62896.0,62895.0,0.56409087]
[1728242572177,0.012,62896.0,62895.0,0.50072272]
[1728242572668,0.012,62896.0,62895.0,0.13992272]
[1728242572874,0.012,62896.0,62895.0,0.50072272]
[1728242573875,0.012,62896.0,62895.0,0.13992272]
[1728242574069,0.012,62896.0,62895.0,0.56409087]
[1728242575464,0.0111,62903.0,62895.0,0.53092272]
[1728242575665,0.0111,62905.0,62902.0,0.11]
[1728242575876,0.0111,62910.0,62906.0,0.063583]
[1728242576072,0.13712563,62914.0,62906.0,0.063583]
[1728242576277,0.13712563,62914.0,62907.0,0.11]
[1728242576473,0.13712563,62914.0,62910.0,0.11]
[1728242576474,0.13342563,62914.0,62910.0,0.11]
[1728242576778,0.12602563,62914.0,62910.0,0.11]
[1728242577381,0.13102563,62914.0,62910.0,0.11]
[1728242577975,0.13102563,62914.0,62910.0,0.111]
[1728242578680,0.14302563,62914.0,62910.0,0.002]
[1728242578878,0.14302563,62914.0,62910.0,0.112]
[1728242579184,0.14302563,62914.0,62910.0,0.002]
[1728242580484,0.20660063,62914.0,62910.0,0.002]
[1728242581778,0.11,62912.0,62910.0,0.002]
[1728242583877,0.122,62912.0,62910.0,0.002]
[1728242584079,0.122,62912.0,62910.0,0.001]
[1728242584283,0.126,62912.0,62910.0,0.002]
[1728242586281,0.05702199,62911.0,62910.0,0.002]
[1728242586501,0.063583,62906.0,62905.0,0.0037]
[1728242586782,0.063591,62899.0,62897.0,0.00238468]
[1728242586974,0.1813131,62898.0,62897.0,0.00238468]
[1728242587169,0.23833509,62898.0,62897.0,0.00238468]
[1728242587374,0.59913509,62898.0,62897.0,0.00238468]
[1728242588691,0.61513509,62898.0,62897.0,0.00438468]
[1728242589680,0.64633509,62898.0,62897.0,0.00438468]
[1728242593388,0.5893131,62898.0,62897.0,0.00438468]
[1728242600294,0.3727,62904.0,62900.0,1.318722]
[1728242600484,0.11,62901.0,62900.0,1.318722]
[1728242600684,0.11783569,62901.0,62900.0,1.318722]
[1728242601487,0.11783569,62901.0,62900.0,1.319722]
[1728242601797,0.12283569,62901.0,62900.0,1.320722]
[1728242601993,0.18642369,62901.0,62900.0,1.320722]
[1728242606107,0.07642369,62901.0,62900.0,1.320722]
[1728242606292,0.18642369,62901.0,62900.0,1.320722]
[1728242614598,0.24345442,62901.0,62900.0,1.320722]
[1728242614797,0.18642369,62901.0,62900.0,1.320722]
[1728242616409,0.30869924,62901.0,62900.0,1.18864981]
[1728242616798,0.02833364,62904.0,62902.0,0.87795057]
[1728242616998,0.11,62903.0,62902.0,0.87795057]
[1728242617903,0.173586,62903.0,62902.0,0.87795057]
[1728242618294,0.174586,62903.0,62902.0,0.87895057]
[1728242618804,0.23983938,62903.0,62902.0,0.87895057]
[1728242619200,0.23983938,62903.0,62902.0,0.87995057]
[1728242619901,0.29686914,62903.0,62902.0,0.87995057]
[1728242621202,0.29886914,62903.0,62902.0,0.87995057]
[1728242621400,0.29886914,62903.0,62902.0,0.78874552]
[1728242621604,0.23361576,62903.0,62902.0,0.78874552]
[1728242622704,0.12361576,62903.0,62902.0,0.78874552]
[1728242622924,0.06002976,62903.0,62902.0,0.78874552]
[1728242623415,0.06002976,62903.0,62902.0,0.82014552]
[1728242623416,0.003,62903.0,62902.0,0.82014552]
[1728242625405,0.003,62903.0,62902.0,1.18094552]
[1728242636815,0.003,62903.0,62902.0,0.82014552]
[1728242637218,0.003,62903.0,62902.0,1.18094552]
[1728242637623,0.003,62903.0,62902.0,0.82014552]
[1728242637823,0.003,62903.0,62902.0,1.18094552]
[1728242643133,0.003,62903.0,62902.0,0.82014552]
[1728242643417,0.003,62903.0,62902.0,1.18094552]
[1728242645114,0.06002411,62903.0,62902.0,1.18094552]
[1728242645509,0.06002411,62903.0,62902.0,0.82014552]
[1728242646418,0.003,62903.0,62902.0,0.82014552]
[1728242653829,0.06002578,62903.0,62902.0,0.82014552]
[1728242661537,0.003,62903.0,62902.0,0.82014552]
[1728242668930,0.06002505,62903.0,62902.0,0.82014552]
[1728242671340,0.05702505,62907.0,62905.0,0.063583]
[1728242671636,0.05702505,62909.0,62906.0,0.11]
[1728242671945,0.05702505,62909.0,62908.0,0.11]
[1728242673640,0.05702505,62909.0,62908.0,0.111]
[1728242674644,0.05702505,62909.0,62908.0,0.112]
[1728242675232,0.05702505,62909.0,62908.0,0.4728]
[1728242675433,0.05702505,62910.0,62908.0,0.4728]
[1728242675641,0.0111,62917.0,62909.0,0.0629]
[1728242675844,0.05702505,62918.0,62916.0,0.11]
[1728242676033,0.11,62924.0,62917.0,0.0329]
[1728242676034,0.05702505,62923.0,62917.0,0.0329]
[1728242676233,0.05702505,62923.0,62920.0,0.11]
[1728242676540,0.18161892,62924.0,62920.0,0.11]
[1728242677549,0.18161892,62924.0,62920.0,0.111]
[1728242677735,0.18161892,62924.0,62920.0,0.112]
[1728242679735,0.2106997,62924.0,62920.0,0.112]
[1728242680944,0.1006997,62924.0,62920.0,0.112]
[1728242681140,0.2106997,62924.0,62920.0,0.112]
[1728242683654,0.05701728,62923.0,62920.0,0.112]
[1728242683955,0.05701728,62922.0,62920.0,0.112]
[1728242684249,0.05701728,62921.0,62920.0,0.09751001]
[1728242685640,0.05701728,62921.0,62920.0,0.09651001]
[1728242685840,0.05701728,62921.0,62920.0,0.09751001]
[1728242686045,0.05701728,62921.0,62920.0,0.09651001]
[1728242686250,0.05701728,62921.0,62920.0,0.09751001]
[1728242688449,0.05701728,62921.0,62920.0,0.002]
[1728242688647,0.16701728,62921.0,62920.0,0.002]
[1728242688852,0.063572,62918.0,62913.0,0.0037]
[1728242689049,0.05701728,62917.0,62910.0,0.0037]
[1728242689358,0.05701728,62916.0,62909.0,0.2014402]
[1728242689556,0.05701728,62915.0,62909.0,0.1729]
[1728242689760,0.05701728,62914.0,62909.0,0.1729]
[1728242689953,0.05701728,62913.0,62909.0,0.1729]
[1728242690150,0.05701728,62916.0,62909.0,0.1729]
[1728242690458,0.05701728,62915.0,62910.0,0.001]
[1728242690664,0.05701728,62914.0,62912.0,0.11]
[1728242690957,0.05701728,62916.0,62912.0,0.11]
[1728242691160,0.05701728,62915.0,62912.0,0.11]
[1728242691453,0.063572,62917.0,62912.0,0.11]
[1728242691653,0.0923105,62917.0,62912.0,0.11]
[1728242692050,0.0923105,62917.0,62909.0,0.0639]
[1728242692251,0.0923105,62917.0,62911.0,0.11]
[1728242692963,0.002,62914.0,62911.0,0.11]
[1728242693456,0.002,62914.0,62911.0,0.111]
[1728242693858,0.063574,62916.0,62911.0,0.112]
[1728242694657,0.002,62914.0,62911.0,0.112]
[1728242696465,0.064574,62916.0,62911.0,0.111]
[1728242696663,0.064574,62916.0,62911.0,0.112]
[1728242697167,0.063574,62916.0,62911.0,0.111]
[1728242697365,0.063574,62916.0,62911.0,0.112]
[1728242697366,0.001,62914.0,62911.0,0.112]
[1728242697968,0.063574,62916.0,62911.0,0.111]
[1728242698151,0.064574,62916.0,62911.0,0.112]
[1728242698359,0.001,62916.0,62911.0,0.112]
[1728242698559,0.001,62916.0,62915.0,0.11]
[1728242699661,0.0287385,62917.0,62915.0,0.11]
[1728242699863,0.07467,62920.0,62915.0,0.111]
[1728242700061,0.06357,62920.0,62915.0,0.111]
[1728242700666,0.001,62916.0,62915.0,0.112]
[1728242700964,0.001,62916.0,62915.0,0.111]
[1728242701160,0.001,62916.0,62915.0,0.112]
[1728242702567,0.06457,62920.0,62915.0,0.112]
[1728242702766,0.09359949,62920.0,62915.0,0.112]
[1728242703467,0.001,62916.0,62915.0,0.112]
[1728242704059,0.09259949,62920.0,62915.0,0.111]
[1728242704268,0.09259949,62920.0,62915.0,0.112]
[1728242704269,0.09359949,62920.0,62915.0,0.112]
[1728242706074,0.001,62916.0,62915.0,0.112]
[1728242706260,0.001,62916.0,62915.0,0.111]
[1728242706455,0.05801341,62916.0,62915.0,0.112]
[1728242706655,0.05801341,62916.0,62915.0,0.111]
[1728242706656,0.05701341,62916.0,62915.0,0.111]
[1728242706861,0.05701341,62916.0,62915.0,0.112]
[1728242707263,0.05701341,62919.0,62915.0,0.112]
[1728242707469,0.05701341,62918.0,62915.0,0.111]
[1728242707669,0.001,62916.0,62915.0,0.112]
[1728242708772,0.001,62916.0,62915.0,0.111]
[1728242709075,0.09259949,62920.0,62915.0,0.111]
[1728242709373,0.001,62919.0,62915.0,0.112]
[1728242710073,0.001,62916.0,62915.0,0.112]
[1728242710659,0.001,62919.0,62915.0,0.112]
[1728242711560,0.08881341,62923.0,62920.0,0.69314603]
[1728242713171,0.08981341,62923.0,62920.0,0.69414603]
[1728242713472,0.08981341,62923.0,62920.0,0.69514603]
[1728242713672,0.0328,62923.0,62920.0,0.69514603]
[1728242714863,0.06108084,62923.0,62920.0,0.69514603]
[1728242715771,0.12464684,62923.0,62920.0,0.69514603]
[1728242715976,0.063567,62922.0,62920.0,0.69514603]
[1728242717465,0.063567,62922.0,62920.0,0.69414603]
[1728242717670,0.063567,62922.0,62920.0,0.69514603]
[1728242722393,0.11,62921.0,62920.0,0.69514603]
[1728242722879,0.2029,62921.0,62920.0,0.69514603]
[1728242723773,0.063574,62915.0,62914.0,0.0037]
[1728242723979,0.06358,62909.0,62907.0,0.0037]
[1728242724282,0.06358,62909.0,62902.0,0.01038441]
[1728242724283,0.06358,62909.0,62902.0,0.00238441]
[1728242724482,0.0111,62915.0,62908.0,0.4708]
[1728242724674,0.0111,62918.0,62914.0,0.11]
[1728242724875,0.0111,62923.0,62919.0,0.11]
[1728242725076,0.063562,62927.0,62922.0,0.11]
[1728242725276,0.39661106,62926.0,62922.0,0.11]
[1728242725685,0.03581106,62926.0,62923.0,0.3608]
[1728242725883,0.063562,62927.0,62923.0,0.3608]
[1728242726284,0.07164674,62927.0,62923.0,0.3608]
[1728242726482,0.001,62926.0,62923.0,0.3608]
[1728242726974,0.001,62926.0,62923.0,0.3618]
[1728242727175,0.10051127,62927.0,62923.0,0.3618]
[1728242727383,0.10251127,62927.0,62923.0,0.3618]
[1728242727584,0.10251127,62927.0,62923.0,0.3628]
[1728242728576,0.12223938,62926.0,62923.0,0.3628]
[1728242728781,0.12223938,62925.0,62923.0,0.3618]
[1728242729087,0.12223938,62924.0,62923.0,0.3628]
[1728242729386,0.05700881,62924.0,62923.0,0.3628]
[1728242729569,0.05700881,62924.0,62923.0,0.3618]
[1728242729570,0.12223938,62924.0,62923.0,0.3618]
[1728242729771,0.05700881,62924.0,62923.0,0.3618]
[1728242729978,0.12223938,62924.0,62923.0,0.3628]
[1728242730174,0.12223938,62924.0,62923.0,0.3618]
[1728242730381,0.12223938,62924.0,62923.0,0.31365001]
[1728242731774,0.12323938,62924.0,62923.0,0.31365001]
[1728242735278,0.12323938,62924.0,62923.0,0.28228501]
[1728242736693,0.001,62924.0,62923.0,0.28228501]
[1728242743590,0.0580061,62924.0,62923.0,0.28228501]
[1728242745695,0.12323209,62924.0,62923.0,0.28228501]
[1728242746192,0.12323209,62924.0,62923.0,0.20049581]
[1728242750597,0.001,62924.0,62923.0,0.31049581]
[1728242751099,0.001,62924.0,62923.0,0.20049581]
[1728242751295,0.001,62924.0,62923.0,0.31049581]
[1728242756090,0.001,62924.0,62923.0,0.8336]
[1728242758697,0.05799836,62924.0,62923.0,0.8336]
[1728242765809,0.001,62924.0,62923.0,0.8336]
[1728242777205,0.00785791,62928.0,62923.0,1.91036]
[1728242777410,0.0037,62934.0,62931.0,0.063558]
[1728242777718,0.00238441,62935.0,62933.0,0.063555]
[1728242777901,0.00238441,62935.0,62934.0,0.11]
[1728242779815,0.00787408,62941.0,62934.0,0.11]
[1728242780015,0.00787408,62941.0,62940.0,0.11]
[1728242780719,0.00787408,62941.0,62934.0,0.069255]
[1728242780720,0.2027978,62941.0,62934.0,0.069255]
[1728242780915,0.05699495,62940.0,62938.0,0.11]
[1728242781109,0.05699495,62939.0,62938.0,0.11]
[1728242783516,0.05699495,62939.0,62938.0,0.111]
[1728242783716,0.05699495,62939.0,62938.0,0.112]
[1728242784607,0.05699495,62939.0,62938.0,0.002]
[1728242788825,0.173549,62940.0,62938.0,0.002]
[1728242792919,0.2024689,62940.0,62938.0,0.002]
[1728242795725,0.05699064,62939.0,62938.0,0.002]
[1728242799033,0.05699064,62939.0,62938.0,0.112]
[1728242799334,0.0924689,62940.0,62938.0,0.112]
[1728242799335,0.0289199,62940.0,62938.0,0.112]
[1728242799524,0.05699064,62942.0,62938.0,0.112]
[1728242799724,0.00810531,62943.0,62941.0,0.11]
[1728242799923,0.12053464,62946.0,62941.0,0.11]
[1728242800133,0.1564533,62946.0,62941.0,0.11]
[1728242800328,0.02857836,62942.0,62941.0,0.11]
[1728242801226,0.02857836,62942.0,62941.0,0.111]
[1728242802132,0.02857836,62942.0,62941.0,0.112]
[1728242818933,0.08556718,62942.0,62941.0,0.112]
[1728242819449,0.08556718,62942.0,62941.0,0.002]
[1728242824874,0.08556718,62942.0,62941.0,0.112]
[1728242825250,0.08556718,62942.0,62941.0,0.1429]
[1728242825963,0.02857836,62942.0,62941.0,0.1419]
[1728242826151,0.02857836,62942.0,62941.0,0.1429]
[1728242830450,0.03639985,62942.0,62941.0,0.1429]
[1728242831057,0.02857836,62942.0,62941.0,0.1429]
[1728242833963,0.08556067,62942.0,62941.0,0.1429]
[1728242835267,0.02857836,62942.0,62941.0,0.1429]
[1728242835470,0.08556067,62942.0,62941.0,0.1429]
[1728242838160,0.02857836,62942.0,62941.0,0.1429]
[1728242841565,0.02857836,62942.0,62941.0,0.112]
[1728242844566,0.02857836,62942.0,62941.0,0.8336]
[1728242852276,0.02857836,62942.0,62941.0,0.112]
[1728242852474,0.02857836,62942.0,62941.0,0.8336]
[1728242856690,0.02857836,62942.0,62941.0,0.112]
[1728242856873,0.02857836,62942.0,62941.0,0.8336]
[1728242860686,0.02857836,62942.0,62941.0,0.112]
[1728242860890,0.02857836,62942.0,62941.0,0.8336]
[1728242870998,0.08555748,62942.0,62941.0,0.8336]
[1728242873796,0.13857836,62942.0,62941.0,0.7236]
[1728242874002,0.08555748,62942.0,62941.0,0.7236]
[1728242879204,0.02857836,62942.0,62941.0,0.7236]
[1728242881021,0.13857836,62942.0,62941.0,0.7236]
[1728242881412,0.13857836,62942.0,62941.0,0.3628]
[1728242886322,0.19556425,62942.0,62941.0,0.3628]
[1728242892433,0.19556425,62942.0,62941.0,0.002]
[1728242894135,0.13857836,62942.0,62941.0,0.002]
[1728242906545,0.02857836,62942.0,62941.0,0.112]
[1728242906748,0.00608344,62953.0,62942.0,0.47664]
[1728242907057,0.00238344,62953.0,62950.0,0.173538]
[1728242907759,0.00238344,62953.0,62951.0,0.063538]
[1728242909952,0.00238344,62953.0,62952.0,0.0333]
[1728242911151,0.00238344,62953.0,62952.0,0.0373]
[1728242915463,0.02913823,62955.0,62953.0,0.063536]
[1728242915659,0.06067212,62959.0,62952.0,0.0373]
[1728242915660,0.11,62958.0,62954.0,0.11]
[1728242915957,0.16697212,62958.0,62955.0,0.063534]
[1728242916158,0.11,62958.0,62955.0,0.063534]
[1728242917559,0.13880155,62958.0,62955.0,0.063534]
[1728242918154,0.13880155,62958.0,62955.0,0.064534]
[1728242919564,0.11,62956.0,62955.0,0.001]
[1728242920655,0.11,62956.0,62949.0,0.0111]
[1728242920861,0.095932,62957.0,62947.0,0.11]
[1728242920862,0.126532,62957.0,62955.0,0.001]
[1728242921061,0.11,62956.0,62955.0,0.001]
[1728242921750,0.11,62956.0,62950.0,0.0111]
[1728242921951,0.11,62951.0,62949.0,0.007]
[1728242923461,0.11,62951.0,62947.0,0.173542]
[1728242923661,0.11,62954.0,62950.0,0.11]
[1728242924457,0.05697609,62956.0,62950.0,0.11]
[1728242924763,0.29350809,62957.0,62950.0,0.11]
[1728242924963,0.05697609,62956.0,62951.0,0.063538]
[1728242925170,0.02880155,62958.0,62955.0,0.11]
[1728242925365,0.05697609,62959.0,62955.0,0.11]
[1728242925663,0.16697609,62960.0,62955.0,0.11]
[1728242926255,0.19600639,62960.0,62955.0,0.11]
[1728242926460,0.05697609,62959.0,62955.0,0.11]
[1728242927064,0.05697609,62959.0,62958.0,0.11]
[1728242927465,0.14953539,62960.0,62958.0,0.11]
[1728242927659,0.14953539,62960.0,62956.0,0.11]
[1728242929573,0.14953539,62960.0,62956.0,0.111]
[1728242930264,0.11,62958.0,62956.0,0.111]
[1728242930468,0.11,62958.0,62956.0,0.001]
[1728242948071,0.0290303,62960.0,62956.0,0.111]
[1728242948276,0.0392391,62961.0,62956.0,0.174533]
[1728242950988,0.06189225,62961.0,62956.0,0.174533]
[1728242953593,0.06189225,62961.0,62956.0,0.111]
[1728242955896,0.06189225,62961.0,62956.0,0.001]
[1728242961388,0.05697288,62960.0,62956.0,0.001]
[1728242961896,0.05697288,62959.0,62956.0,0.001]
[1728242962196,0.05697288,62960.0,62956.0,0.001]
[1728242962786,0.05697288,62959.0,62956.0,0.001]
[1728242962986,0.05697288,62960.0,62956.0,0.001]
[1728242963189,0.05697288,62959.0,62956.0,0.001]
[1728242963387,0.11886513,62961.0,62956.0,0.001]
[1728242963588,0.11886513,62961.0,62955.0,0.3929]
[1728242963791,0.11886513,62961.0,62956.0,0.001]
[1728242963995,0.05697288,62960.0,62956.0,0.001]
[1728242964296,0.05697288,62959.0,62956.0,0.001]
[1728242964599,0.05697288,62958.0,62956.0,0.001]
[1728242964901,0.05697288,62960.0,62955.0,0.3929]
[1728242965090,0.05697288,62959.0,62956.0,0.001]
[1728242965284,0.05697288,62958.0,62956.0,0.001]
[1728242965495,0.05697288,62960.0,62956.0,0.001]
[1728242965806,0.05697288,62959.0,62956.0,0.001]
[1728242966098,0.05697288,62958.0,62956.0,0.001]
[1728242966290,0.05697288,62960.0,62956.0,0.001]
[1728242966490,0.05697288,62959.0,62956.0,0.001]
[1728242966801,0.05697288,62958.0,62956.0,0.001]
[1728242967095,0.05697288,62960.0,62956.0,0.001]
[1728242967392,0.06189225,62961.0,62956.0,0.001]
[1728242967393,0.05697288,62959.0,62956.0,0.001]
[1728242967597,0.05697288,62958.0,62956.0,0.001]
[1728242967791,0.05697288,62957.0,62956.0,0.001]
[1728242968194,0.11886513,62961.0,62956.0,0.001]
[1728242968401,0.06189225,62961.0,62955.0,0.0321]
[1728242968598,0.06189225,62961.0,62956.0,0.001]
[1728242970602,0.06189225,62961.0,62956.0,0.3618]
[1728242980409,0.05697192,62960.0,62957.0,0.063532]
[1728242980600,0.05697192,62963.0,62959.0,0.11]
[1728242980793,0.05697192,62962.0,62959.0,0.11]
[1728242981094,0.0325,62965.0,62959.0,0.11]
[1728242981299,0.0325,62965.0,62963.0,0.11]
[1728242981300,0.05697192,62965.0,62963.0,0.11]
[1728242981600,0.00608275,62972.0,62963.0,0.11]
[1728242981792,0.05935467,62972.0,62966.0,0.11]
[1728242982209,0.0399444,62971.0,62966.0,0.11]
[1728242982500,0.06255334,62971.0,62966.0,0.11]
[1728242982810,0.05697192,62970.0,62966.0,0.11]
[1728242983509,0.06255334,62971.0,62966.0,0.11]
[1728242984413,0.06255334,62971.0,62966.0,0.112]
[1728242984705,0.06255334,62971.0,62970.0,0.11]
[1728242987002,0.06255334,62971.0,62970.0,0.111]
[1728242987412,0.06255334,62971.0,62970.0,0.112]
[1728242991809,0.06255334,62971.0,62970.0,0.111]
[1728242992010,0.06255334,62971.0,62970.0,0.112]
[1728242998304,0.03075334,62971.0,62970.0,0.112]
[1728242998508,0.05696327,62973.0,62970.0,0.112]
[1728243000208,0.05696327,62973.0,62970.0,0.111]
[1728243000513,0.05696327,62973.0,62970.0,0.112]
[1728243001021,0.11,62972.0,62970.0,0.112]
[1728243001308,0.11810561,62972.0,62970.0,0.112]
[1728243002313,0.00810561,62972.0,62970.0,0.112]
[1728243002512,0.05696327,62973.0,62970.0,0.112]
[1728243003224,0.24703853,62974.0,62972.0,0.11]
[1728243003512,0.545,63040.0,62994.0,0.063494]
[1728243003513,0.063478,63011.0,62994.0,0.063494]
[1728243003706,0.08587817,63013.0,63001.0,0.73227356]
[1728243003905,0.08587817,63013.0,63010.0,0.11]
[1728243004305,0.07447817,63013.0,63010.0,0.11]
[1728243004506,0.00088,63030.0,63012.0,1.09301889]
[1728243004714,0.11,63018.0,63012.0,0.3608]
[1728243004916,0.11,63021.0,63012.0,0.4708]
[1728243005115,0.03,63020.0,63015.0,0.11]
[1728243005317,0.11,63029.0,63018.0,0.4708]
[1728243005513,0.11,63019.0,63018.0,0.3608]
[1728243005712,0.063451,63037.0,63018.0,0.3608]
[1728243005917,0.11,63020.0,63018.0,0.3608]
[1728243006511,0.11,63020.0,63012.0,0.001]
[1728243006512,0.0325,63019.0,63012.0,0.001]
[1728243006816,0.11,63013.0,63012.0,0.001]
[1728243007017,0.11,63013.0,62979.0,0.07908499]
[1728243007018,0.11,63013.0,62997.0,0.36317985]
[1728243007226,0.11,63004.0,62997.0,0.36317985]
[1728243008213,0.11,63004.0,62997.0,0.53667085]
[1728243009125,0.11,63004.0,62997.0,0.17587085]
[1728243009312,0.11,63004.0,62998.0,0.06349]
[1728243009812,0.11,63004.0,63003.0,0.3638]
[1728243010125,0.11,63004.0,63003.0,0.003]
[1728243010511,0.11,63004.0,62998.0,0.3608]
[1728243010718,0.11,62999.0,62998.0,0.3608]
[1728243011918,0.11,62999.0,62998.0,0.3618]
[1728243012223,0.11,62999.0,62998.0,0.3119]
[1728243012607,0.11,62999.0,62998.0,0.3199]
[1728243012808,0.11,62999.0,62998.0,0.009]
[1728243013817,0.16693805,62999.0,62998.0,0.009]
[1728243014418,1.62676144,62999.0,62984.0,0.063504]
[1728243014621,0.11,62985.0,62984.0,0.063504]
[1728243014925,0.11,62989.0,62985.0,0.063503]
[1728243015422,0.11,62986.0,62985.0,0.063503]
[1728243015814,0.11,62986.0,62980.0,0.063508]
[1728243016014,0.11,62986.0,62981.0,0.063507]
[1728243017224,0.0325,62985.0,62981.0,0.063507]
[1728243017424,0.0325,62985.0,62981.0,0.070507]
[1728243017718,0.11,62983.0,62981.0,0.007]
[1728243018429,0.41773805,62984.0,62981.0,0.007]
[1728243018629,0.05693805,62983.0,62981.0,0.007]
[1728243018823,0.05693805,62983.0,62981.0,0.008]
[1728243019325,0.05693805,62983.0,62981.0,0.009]
[1728243020129,0.05693805,62983.0,62981.0,0.001]
[1728243020424,0.05793805,62983.0,62981.0,0.009]
[1728243021627,0.001,62983.0,62981.0,0.009]
[1728243022028,0.00084,62984.0,62981.0,0.009]
[1728243022234,0.3608,62999.0,62984.0,0.063504]
[1728243022235,0.1917,62996.0,62984.0,0.063504]
[1728243022628,0.16,62992.0,62984.0,0.063504]
[1728243023529,0.0317,62996.0,62984.0,0.063504]
[1728243023730,0.16,62992.0,62984.0,0.063504]
[1728243023934,0.16,62992.0,62984.0,0.068504]
[1728243024521,0.16,62988.0,62984.0,0.005]
[1728243024928,0.063498,62991.0,62984.0,0.005]
[1728243025336,0.16,62992.0,62986.0,0.063502]
[1728243025525,0.0317,62996.0,62986.0,0.063502]
[1728243025526,0.1917,62996.0,62986.0,0.063502]
[1728243025840,0.1917,62996.0,62987.0,0.063501]
[1728243026131,0.0317,62996.0,62990.0,0.063498]
[1728243027625,0.0317,62996.0,62986.0,0.003]
[1728243027626,0.1917,62996.0,62986.0,0.003]
[1728243028021,0.16,62991.0,62986.0,0.003]
[1728243028423,0.16,62991.0,62979.0,0.48285999]
[1728243028622,0.0327,62996.0,62979.0,0.3608]
[1728243028623,0.16,62982.0,62979.0,0.3608]
[1728243029731,0.0308,62981.0,62979.0,0.3608]
[1728243029936,0.0633,62981.0,62979.0,0.3628]
[1728243030120,0.0633,62981.0,62979.0,0.3728]
[1728243030429,0.126808,62981.0,62979.0,0.3728]
[1728243031020,0.126808,62981.0,62971.0,0.0111]
[1728243031021,0.0633,62981.0,62971.0,0.0111]
[1728243031220,0.16,62972.0,62967.0,0.0111]
[1728243031441,0.16,62967.0,62966.0,0.00238216]
[1728243032131,0.16,62967.0,62957.0,0.0111]
[1728243032331,0.16,62967.0,62950.0,0.0638]
[1728243032332,0.16,62959.0,62953.0,0.0111]
[1728243032524,0.16,62959.0,62950.0,0.063538]
[1728243033126,0.16,62959.0,62945.0,0.0111]
[1728243033127,0.3608,62956.0,62945.0,0.0111]
[1728243033323,0.3608,62956.0,62953.0,0.223535]
[1728243034236,0.3608,62956.0,62953.0,0.063535]
[1728243035930,0.3618,62956.0,62953.0,0.063535]
[1728243036233,0.3618,62956.0,62953.0,0.071535]
[1728243036633,0.001,62956.0,62954.0,0.12105318]
[1728243036832,0.001,62956.0,62955.0,0.12105318]
[1728243037634,0.428026,62963.0,62955.0,0.12105318]
[1728243037834,0.424326,62963.0,62962.0,0.06274023]
[1728243038138,0.424326,62963.0,62962.0,0.05877023]
[1728243038441,0.424326,62963.0,62958.0,0.07842529]
[1728243039137,0.424326,62963.0,62955.0,0.09860199]
[1728243039138,0.00045,62962.0,62959.0,0.07842529]
[1728243039338,0.03224681,62961.0,62959.0,0.07842529]
[1728243039939,0.03224681,62961.0,62960.0,0.12105005]
[1728243040643,0.03324681,62961.0,62960.0,0.12105005]
[1728243041438,0.03324681,62961.0,62960.0,0.21595204]
[1728243042238,0.03324681,62961.0,62960.0,0.12905005]
[1728243042545,0.03324681,62961.0,62960.0,0.13005005]
[1728243042949,0.03324681,62961.0,62960.0,0.22427233]
[1728243043240,0.19324681,62961.0,62960.0,0.22427233]
[1728243043440,0.19324681,62961.0,62960.0,0.13005005]
[1728243043642,0.19324681,62961.0,62960.0,0.009]
[1728243049438,0.2162098,62961.0,62960.0,0.009]
[1728243049847,0.0562098,62961.0,62960.0,0.009]
[1728243052746,0.03324681,62961.0,62960.0,0.009]
[1728243058450,0.03340492,62961.0,62960.0,0.009]